fUST/lending_fUST_20250224
["ID","MTS","AMOUNT","RATE_DAILY","PERIOD"]
[354307545,1740406241330,-500.0,0.00013698,2]
[354307547,1740406241339,-500.0,0.00013698,2]
[354307549,1740406241351,-500.0,0.00013698,2]
[354307551,1740406241360,-719.3,0.00013698,2]
[354307553,1740406241370,-524.76,0.00013698,2]
[354307555,1740406241378,-500.0,0.00013698,2]
[354307557,1740406241389,-500.0,0.00013698,2]
[354307559,1740406241398,-500.0,0.00013698,2]
[354307561,1740406241407,-500.0,0.00013698,2]
[354307563,1740406241416,-500.0,0.00013698,2]
[354307565,1740406241427,-500.0,0.00013698,2]
[354307567,1740406241436,-500.0,0.00013698,2]
[354307569,1740406241445,-509.39700835,0.00013698,2]
[354307571,1740406241454,-500.0,0.00013698,2]
[354307573,1740406241463,-937.79,0.00013698,2]
[354307575,1740406241473,-500.0,0.00013698,2]
[354307577,1740406241483,-500.0,0.00013698,2]
[354307579,1740406241492,-500.0,0.00013698,2]
[354307581,1740406241501,-500.0,0.00013698,2]
[354307583,1740406241515,-500.0,0.00013698,2]
[354307585,1740406241524,-1677.05,0.00013698,2]
[354307587,1740406241533,-500.0,0.00013698,2]
[354307589,1740406241542,-652.67,0.00013698,2]
[354307591,1740406241551,-500.0,0.00013698,2]
[354307593,1740406241560,-3143.83,0.00013698,2]
[354307595,1740406241569,-500.0,0.00013698,2]
[354307597,1740406241578,-500.0,0.00013698,2]
[354307599,1740406241587,-500.0,0.00013698,2]
[354307601,1740406241596,-500.0,0.00013698,2]
[354307603,1740406241605,-500.0,0.00013698,2]
[354307605,1740406241615,-8408.88,0.00013698,2]
[354307607,1740406241624,-1644.21,0.00013698,2]
[354307609,1740406241633,-1644.21,0.00013698,2]
[354307611,1740406241642,-1644.21,0.00013698,2]
[354307613,1740406241651,-1644.21,0.00013698,2]
[354307615,1740406241661,-1644.21,0.00013698,2]
[354307617,1740406241670,-1644.21,0.00013698,2]
[354307619,1740406241679,-1644.21,0.00013698,2]
[354307621,1740406241689,-500.0,0.00013698,2]
[354307623,1740406241698,-1644.21,0.00013698,2]
[354307625,1740406241708,-1644.21,0.00013698,2]
[354307627,1740406241717,-1644.21,0.00013698,2]
[354307629,1740406241727,-1644.21,0.00013698,2]
[354307631,1740406241736,-1644.21,0.00013698,2]
[354307634,1740406241747,-1863.36,0.00013698,2]
[354307636,1740406241756,-500.0,0.00013698,2]
[354307637,1740406241765,-500.0,0.00013698,2]
[354307640,1740406241775,-500.0,0.00013698,2]
[354307642,1740406241784,-521.41,0.00013698,2]
[354307644,1740406241793,-2117.28,0.00013698,2]
[354307645,1740406241802,-500.0,0.00013698,2]
[354307648,1740406241812,-308.47284582,0.00013698,2]
[354307650,1740406241822,-540.81,0.00013698,2]
[354307652,1740406241832,-501.71078274,0.00013698,2]
[354307654,1740406241841,-500.0,0.00013698,2]
[354307656,1740406241851,-500.0,0.00013698,2]
[354307658,1740406241860,-960.64,0.00013698,2]
[354307660,1740406241869,-500.0,0.00013698,2]
[354307662,1740406241878,-500.0,0.00013698,2]
[354307664,1740406241887,-500.0,0.00013698,2]
[354307666,1740406241896,-800.78,0.00013698,2]
[354307668,1740406241906,-500.0,0.00013698,2]
[354307670,1740406241915,-500.0,0.00013698,2]
[354307672,1740406241924,-502.05300707,0.00013698,2]
[354307674,1740406241933,-500.0,0.00013698,2]
[354307676,1740406241942,-286.75,0.00013698,2]
[354307678,1740406241951,-500.0,0.00013698,2]
[354307680,1740406241960,-500.0,0.00013698,2]
[354307682,1740406241970,-502.82324713,0.00013698,2]
[354307684,1740406241979,-500.0,0.00013698,2]
[354307686,1740406241988,-635.91,0.00013698,2]
[354307688,1740406241997,-500.0,0.00013698,2]
[354307690,1740406242007,-500.0,0.00013698,2]
[354307692,1740406242017,-500.0,0.00013698,2]
[354307694,1740406242026,-961.58,0.00013698,2]
[354307696,1740406242036,-871.13,0.00013698,2]
[354307698,1740406242045,-500.0,0.00013698,2]
[354307700,1740406242054,-500.0,0.00013698,2]
[354307702,1740406242064,-500.0,0.00013698,2]
[354307704,1740406242073,-500.0,0.00013698,2]
[354307706,1740406242082,-500.0,0.00013698,2]
[354307708,1740406242091,-500.0,0.00013698,2]
[354307710,1740406242100,-500.0,0.00013698,2]
[354307712,1740406242109,-500.0,0.00013698,2]
[354307714,1740406242118,-500.0,0.00013698,2]
[354307716,1740406242127,-500.0,0.00013698,2]
[354307718,1740406242136,-500.0,0.00013698,2]
[354307720,1740406242145,-500.0,0.00013698,2]
[354307722,1740406242155,-500.0,0.00013698,2]
[354307724,1740406242164,-500.0,0.00013698,2]
[354307726,1740406242173,-500.0,0.00013698,2]
[354307728,1740406242182,-500.0,0.00013698,2]
[354307730,1740406242191,-500.0,0.00013698,2]
[354307732,1740406242200,-500.0,0.00013698,2]
[354307734,1740406242209,-503.89976115,0.00013698,2]
[354307736,1740406242218,-2278.76,0.00013698,2]
[354307738,1740406242228,-500.0,0.00013698,2]
[354307740,1740406242237,-547.69,0.00013698,2]
[354307742,1740406242246,-182.010267,0.00013699,2]
[354307744,1740406242255,-156.72567235,0.00013699,2]
[354307746,1740406242264,-199.56546298,0.00013699,2]
[354307748,1740406242273,-199.56546298,0.0001375,2]
[354307750,1740406242282,-1644.21,0.00013779,2]
[354307752,1740406242291,-1644.21,0.00013779,2]
[354307754,1740406242300,-1644.21,0.00013779,2]
[354307756,1740406242310,-1644.21,0.00013779,2]
[354307758,1740406242318,-1644.21,0.00013779,2]
[354307760,1740406242328,-1644.21,0.00013779,2]
[354307762,1740406242338,-1644.21,0.00013779,2]
[354307764,1740406242352,-500.0,0.0001378,2]
[354307766,1740406242362,-207.06302328,0.0001378,2]
[354307768,1740406242371,-500.0,0.0001378,2]
[354307770,1740406242381,-233.843,0.0001378,2]
[354307772,1740406242390,-500.0,0.0001378,2]
[354307774,1740406242399,-500.0,0.0001378,2]
[354307776,1740406242408,-653.96,0.0001378,2]
[354307778,1740406242418,-500.0,0.0001378,2]
[354307780,1740406242428,-500.0,0.0001378,2]
[354307782,1740406242437,-648.72,0.0001378,2]
[354307784,1740406242447,-500.0,0.0001378,2]
[354307786,1740406242456,-400.22611081,0.0001378,2]
[354307788,1740406242465,-1200.41,0.0001378,2]
[354307790,1740406242474,-168.88,0.0001378,2]
[354307792,1740406242484,-580.62691748,0.0001378,2]
[354307794,1740406242492,-500.0,0.0001378,2]
[354307796,1740406242502,-500.0,0.0001378,2]
[354307798,1740406242511,-500.0,0.0001378,2]
[354307800,1740406242520,-541.3,0.0001378,2]
[354307802,1740406242531,-367.91592911,0.0001378,2]
[354307804,1740406242540,-500.0,0.0001378,2]
[354307806,1740406242550,-500.0,0.0001378,2]
[354307808,1740406242559,-500.0,0.0001378,2]
[354307810,1740406242568,-500.0,0.0001378,2]
[354307812,1740406242577,-500.0,0.0001378,2]
[354307814,1740406242586,-500.0,0.0001378,2]
[354307816,1740406242595,-500.0,0.0001378,2]
[354307818,1740406242604,-500.0,0.0001378,2]
[354307820,1740406242613,-500.0,0.0001378,2]
[354307822,1740406242623,-500.0,0.0001378,2]
[354307824,1740406242632,-500.0,0.0001378,2]
[354307826,1740406242641,-500.0,0.0001378,2]
[354307828,1740406242650,-465.68915968,0.0001378,2]
[354307830,1740406242660,-566.78,0.0001378,2]
[354307832,1740406242669,-501.87893835,0.0001378,2]
[354307834,1740406242678,-501.77120487,0.0001378,2]
[354307836,1740406242687,-449.56818694,0.0001378,2]
[354307838,1740406242697,-500.0,0.0001378,2]
[354307840,1740406242706,-539.67,0.0001378,2]
[354307842,1740406242715,-500.0,0.0001378,2]
[354307844,1740406242725,-500.0,0.0001378,2]
[354307846,1740406242734,-500.0,0.0001378,2]
[354307848,1740406242743,-500.0,0.0001378,2]
[354307850,1740406242752,-607.01,0.0001378,2]
[354307852,1740406242761,-500.0,0.0001378,2]
[354307854,1740406242770,-500.0,0.0001378,2]
[354307856,1740406242779,-500.0,0.0001378,2]
[354307858,1740406242788,-500.0,0.0001378,2]
[354307860,1740406242797,-500.0,0.0001378,2]
[354307862,1740406242806,-356.68826477,0.0001378,2]
[354307864,1740406242816,-500.0,0.0001378,2]
[354307866,1740406242825,-500.0,0.0001378,2]
[354307868,1740406242834,-500.0,0.0001378,2]
[354307870,1740406242844,-500.0,0.0001378,2]
[354307872,1740406242853,-645.13118591,0.0001378,2]
[354307874,1740406242863,-500.0,0.0001378,2]
[354307877,1740406242873,-500.0,0.0001378,2]
[354307879,1740406242882,-500.0,0.0001378,2]
[354307881,1740406242892,-583.28,0.0001378,2]
[354307883,1740406242901,-500.0,0.0001378,2]
[354307885,1740406242909,-500.0,0.0001378,2]
[354307887,1740406242918,-500.0,0.0001378,2]
[354307888,1740406242927,-500.0,0.0001378,2]
[354307890,1740406242937,-500.0,0.0001378,2]
[354307892,1740406242946,-500.0,0.0001378,2]
[354307894,1740406242955,-500.0,0.0001378,2]
[354307897,1740406242965,-500.0,0.0001378,2]
[354307899,1740406242974,-500.0,0.0001378,2]
[354307901,1740406242984,-500.0,0.0001378,2]
[354307902,1740406242993,-500.0,0.0001378,2]
[354307904,1740406243003,-500.0,0.0001378,2]
[354307906,1740406243012,-500.0,0.0001378,2]
[354307908,1740406243021,-500.0,0.0001378,2]
[354307911,1740406243031,-500.0,0.0001378,2]
[354307912,1740406243040,-500.0,0.0001378,2]
[354307914,1740406243049,-500.0,0.0001378,2]
[354307916,1740406243059,-500.0,0.0001378,2]
[354307919,1740406243068,-500.0,0.0001378,2]
[354307920,1740406243078,-500.0,0.0001378,2]
[354307922,1740406243088,-500.0,0.0001378,2]
[354307925,1740406243097,-500.0,0.0001378,2]
[354307927,1740406243106,-500.0,0.0001378,2]
[354307929,1740406243116,-500.0,0.0001378,2]
[354307931,1740406243125,-500.0,0.0001378,2]
[354307932,1740406243134,-500.0,0.0001378,2]
[354307934,1740406243143,-500.0,0.0001378,2]
[354307936,1740406243153,-500.0,0.0001378,2]
[354307940,1740406243162,-500.0,0.0001378,2]
[354307942,1740406243171,-500.0,0.0001378,2]
[354307944,1740406243181,-2154.28,0.0001378,2]
[354307946,1740406243190,-491.83280736,0.0001378,2]
[354307948,1740406243199,-382.47109495,0.0001378,2]
[354307950,1740406243209,-500.0,0.0001378,2]
[354307952,1740406243219,-500.0,0.0001378,2]
[354307954,1740406243228,-500.0,0.0001378,2]
[354307957,1740406243237,-500.0,0.0001378,2]
[354307960,1740406243247,-500.0,0.0001378,2]
[354307963,1740406243262,-500.0,0.0001378,2]
[354307965,1740406243275,-500.0,0.0001378,2]
[354307967,1740406243284,-500.0,0.0001378,2]
[354307969,1740406243292,-500.0,0.0001378,2]
[354307971,1740406243302,-500.0,0.0001378,2]
[354307972,1740406243311,-614.62,0.0001378,2]
[354307973,1740406243320,-5213.81,0.0001378,2]
[354307974,1740406243330,-9270.07,0.0001378,2]
[354307975,1740406243339,-22652.11,0.0001378,2]
[354307976,1740406243352,-1668.81,0.0001378,2]
[354307977,1740406243361,-967.07,0.0001378,2]
[354307978,1740406243370,-748.04,0.0001378,2]
[354307979,1740406243379,-1958.27,0.0001378,2]
[354307980,1740406243388,-734.96,0.0001378,2]
[354307981,1740406243398,-500.0,0.0001378,2]
[354307982,1740406243407,-559.33,0.0001378,2]
[354307983,1740406243416,-647.43,0.0001378,2]
[354307984,1740406243427,-500.0,0.0001378,2]
[354307985,1740406243437,-719.3,0.0001378,2]
[354307986,1740406243447,-524.76,0.0001378,2]
[354307987,1740406243456,-553.81484711,0.0001378,2]
[354307988,1740406243465,-500.0,0.0001378,2]
[354307990,1740406243475,-500.0,0.0001378,2]
[354307992,1740406243485,-500.0,0.0001378,2]
[354307994,1740406243494,-937.79,0.0001378,2]
[354307996,1740406243503,-500.0,0.0001378,2]
[354307998,1740406243513,-500.0,0.0001378,2]
[354308000,1740406243522,-1677.05,0.0001378,2]
[354308002,1740406243532,-500.0,0.0001378,2]
[354308004,1740406243541,-652.67,0.0001378,2]
[354308006,1740406243551,-500.0,0.0001378,2]
[354308008,1740406243560,-3143.83,0.0001378,2]
[354308010,1740406243571,-500.0,0.0001378,2]
[354308012,1740406243580,-500.0,0.0001378,2]
[354308014,1740406243589,-195.76115986,0.0001378,2]
[354308016,1740406243598,-8408.88,0.0001378,2]
[354308018,1740406243607,-1863.36,0.0001378,2]
[354308020,1740406243617,-648.60634332,0.0001378,2]
[354308022,1740406243626,-571.13697064,0.0001378,2]
[354308024,1740406243635,-521.41,0.0001378,2]
[354308026,1740406243645,-2117.28,0.0001378,2]
[354308028,1740406243654,-540.81,0.0001378,2]
[354308030,1740406243663,-504.50185385,0.0001378,2]
[354308032,1740406243673,-500.0,0.0001378,2]
[354308034,1740406243683,-960.64,0.0001378,2]
[354308036,1740406243699,-500.0,0.0001378,2]
[354308038,1740406243709,-500.0,0.0001378,2]
[354308040,1740406243718,-800.78,0.0001378,2]
[354308042,1740406243727,-500.0,0.0001378,2]
[354308044,1740406243737,-500.0,0.0001378,2]
[354308046,1740406243747,-500.0,0.0001378,2]
[354308048,1740406243756,-635.91,0.0001378,2]
[354308050,1740406243766,-500.0,0.0001378,2]
[354308053,1740406243776,-961.58,0.0001378,2]
[354308054,1740406243785,-871.13,0.0001378,2]
[354308056,1740406243795,-500.0,0.0001378,2]
[354308058,1740406243804,-500.0,0.0001378,2]
[354308060,1740406243813,-500.0,0.0001378,2]
[354308062,1740406243822,-500.0,0.0001378,2]
[354308064,1740406243832,-500.0,0.0001378,2]
[354308066,1740406243841,-507.0895533,0.0001378,2]
[354308068,1740406243850,-500.0,0.0001378,2]
[354308071,1740406243860,-500.0,0.0001378,2]
[354308073,1740406243869,-500.0,0.0001378,2]
[354308075,1740406243879,-500.0,0.0001378,2]
[354308088,1740406243888,-500.0,0.0001378,2]
[354308090,1740406244006,-2278.76,0.0001378,2]
[354308092,1740406244015,-500.0,0.0001378,2]
[354308094,1740406244024,-199.56546298,0.000138,2]
[354308096,1740406244033,-4388.19195501,0.000138,2]
[354308098,1740406244044,-500.0,0.00013807,2]
[354308100,1740406244053,-500.0,0.00013807,2]
[354308102,1740406244062,-157.47783642,0.00013807,2]
[354308104,1740406244071,-641.55049832,0.00013807,2]
[354308106,1740406244081,-441.18101717,0.00013807,2]
[354308108,1740406244090,-153.0,0.00013808,2]
[354308110,1740406244099,-153.0,0.00013808,2]
[354308112,1740406244108,-153.0,0.00013808,2]
[354308114,1740406244117,-153.0,0.00013808,2]
[354308116,1740406244127,-153.0,0.00013808,2]
[354308118,1740406244137,-153.0,0.00013808,2]
[354308120,1740406244146,-153.0,0.00013808,2]
[354308122,1740406244155,-153.0,0.00013808,2]
[354308124,1740406244165,-153.0,0.00013808,2]
[354308126,1740406244174,-153.0,0.00013808,2]
[354308129,1740406244185,-153.0,0.00013808,2]
[354308131,1740406244194,-153.0,0.00013808,2]
[354308133,1740406244203,-153.0,0.00013808,2]
[354308135,1740406244214,-153.0,0.00013808,2]
[354308137,1740406244222,-153.0,0.00013808,2]
[354308139,1740406244232,-153.0,0.00013808,2]
[354308141,1740406244240,-153.0,0.00013808,2]
[354308142,1740406244250,-153.0,0.00013808,2]
[354308144,1740406244259,-153.0,0.00013808,2]
[354308146,1740406244268,-153.0,0.00013808,2]
[354308148,1740406244277,-153.0,0.00013808,2]
[354308150,1740406244286,-153.0,0.00013808,2]
[354308152,1740406244295,-153.0,0.00013808,2]
[354308154,1740406244304,-153.0,0.00013808,2]
[354308157,1740406244314,-153.0,0.00013808,2]
[354308158,1740406244323,-153.0,0.00013808,2]
[354308160,1740406244332,-153.0,0.00013808,2]
[354308162,1740406244342,-153.0,0.00013808,2]
[354308165,1740406244356,-153.0,0.00013808,2]
[354308167,1740406244365,-153.0,0.00013808,2]
[354308169,1740406244374,-153.0,0.00013808,2]
[354308170,1740406244383,-153.0,0.00013808,2]
[354308172,1740406244394,-153.0,0.00013808,2]
[354308174,1740406244403,-153.0,0.00013808,2]
[354308177,1740406244413,-153.0,0.00013808,2]
[354308179,1740406244423,-153.0,0.00013808,2]
[354308180,1740406244432,-153.0,0.00013808,2]
[354308182,1740406244442,-153.0,0.00013808,2]
[354308184,1740406244451,-153.0,0.00013808,2]
[354308187,1740406244461,-153.0,0.00013808,2]
[354308188,1740406244470,-153.0,0.00013808,2]
[354308190,1740406244479,-153.0,0.00013808,2]
[354308193,1740406244489,-153.0,0.00013808,2]
[354308195,1740406244498,-153.0,0.00013808,2]
[354308196,1740406244507,-153.0,0.00013808,2]
[354308199,1740406244517,-153.0,0.00013808,2]
[354308200,1740406244526,-153.0,0.00013808,2]
[354308202,1740406244535,-153.0,0.00013808,2]
[354308204,1740406244544,-153.0,0.00013808,2]
[354308206,1740406244553,-153.0,0.00013808,2]
[354308208,1740406244563,-153.0,0.00013808,2]
[354308210,1740406244574,-153.0,0.00013808,2]
[354308213,1740406244583,-153.0,0.00013808,2]
[354308215,1740406244592,-153.0,0.00013808,2]
[354308217,1740406244601,-153.0,0.00013808,2]
[354308218,1740406244610,-153.0,0.00013808,2]
[354308220,1740406244620,-153.0,0.00013808,2]
[354308223,1740406244629,-153.0,0.00013808,2]
[354308225,1740406244638,-153.0,0.00013808,2]
[354308227,1740406244647,-153.0,0.00013808,2]
[354308229,1740406244656,-153.0,0.00013808,2]
[354308231,1740406244665,-153.0,0.00013808,2]
[354308232,1740406244674,-153.0,0.00013808,2]
[354308234,1740406244683,-153.0,0.00013808,2]
[354308236,1740406244692,-153.0,0.00013808,2]
[354308239,1740406244702,-153.0,0.00013808,2]
[354308240,1740406244711,-153.0,0.00013808,2]
[354308243,1740406244720,-153.0,0.00013808,2]
[354308244,1740406244729,-153.0,0.00013808,2]
[354308246,1740406244739,-153.0,0.00013808,2]
[354308248,1740406244747,-153.0,0.00013808,2]
[354308250,1740406244756,-153.0,0.00013808,2]
[354308252,1740406244766,-153.0,0.00013808,2]
[354308254,1740406244775,-153.0,0.00013808,2]
[354308256,1740406244784,-1644.21,0.00013852,2]
[354308258,1740406244794,-1644.21,0.00013852,2]
[354308260,1740406244804,-1644.21,0.00013852,2]
[354308263,1740406244813,-1644.21,0.00013852,2]
[354308265,1740406244822,-1644.34663798,0.00013852,2]
[354308267,1740406244831,-500.0,0.00013863,2]
[354308269,1740406244841,-653.96,0.00013863,2]
[354308271,1740406244850,-500.0,0.00013863,2]
[354308273,1740406244859,-648.72,0.00013863,2]
[354308275,1740406244868,-1200.41,0.00013863,2]
[354308277,1740406244878,-500.0,0.00013863,2]
[354308279,1740406244887,-541.3,0.00013863,2]
[354308281,1740406244897,-500.0,0.00013863,2]
[354308283,1740406244907,-500.0,0.00013863,2]
[354308285,1740406244916,-500.0,0.00013863,2]
[354308287,1740406244925,-500.0,0.00013863,2]
[354308289,1740406244935,-500.0,0.00013863,2]
[354308291,1740406244944,-500.0,0.00013863,2]
[354308293,1740406244954,-500.0,0.00013863,2]
[354308295,1740406244964,-500.0,0.00013863,2]
[354308297,1740406244973,-500.0,0.00013863,2]
[354308299,1740406244983,-566.78,0.00013863,2]
[354308301,1740406244992,-539.67,0.00013863,2]
[354308303,1740406245002,-364.39935078,0.00013863,2]
[354308305,1740406245011,-500.0,0.00013863,2]
[354308307,1740406245020,-500.0,0.00013863,2]
[354308309,1740406245029,-607.01,0.00013863,2]
[354308311,1740406245039,-500.0,0.00013863,2]
[354308313,1740406245049,-500.0,0.00013863,2]
[354308315,1740406245058,-500.0,0.00013863,2]
[354308318,1740406245070,-500.0,0.00013863,2]
[354308320,1740406245079,-500.0,0.00013863,2]
[354308322,1740406245089,-500.0,0.00013863,2]
[354308324,1740406245098,-500.0,0.00013863,2]
[354308325,1740406245107,-583.28,0.00013863,2]
[354308327,1740406245116,-500.0,0.00013863,2]
[354308329,1740406245126,-500.0,0.00013863,2]
[354308331,1740406245135,-500.0,0.00013863,2]
[354308333,1740406245144,-500.0,0.00013863,2]
[354308335,1740406245153,-500.0,0.00013863,2]
[354308337,1740406245162,-500.0,0.00013863,2]
[354308340,1740406245172,-500.0,0.00013863,2]
[354308341,1740406245181,-500.0,0.00013863,2]
[354308344,1740406245191,-500.0,0.00013863,2]
[354308346,1740406245201,-500.0,0.00013863,2]
[354308347,1740406245211,-500.0,0.00013863,2]
[354308350,1740406245220,-500.0,0.00013863,2]
[354308352,1740406245230,-500.0,0.00013863,2]
[354308353,1740406245239,-500.0,0.00013863,2]
[354308356,1740406245250,-500.0,0.00013863,2]
[354308357,1740406245259,-500.0,0.00013863,2]
[354308359,1740406245269,-500.0,0.00013863,2]
[354308361,1740406245278,-402.32676961,0.00013863,2]
[354308363,1740406245287,-500.0,0.00013863,2]
[354308366,1740406245296,-500.0,0.00013863,2]
[354308368,1740406245306,-500.0,0.00013863,2]
[354308370,1740406245315,-500.0,0.00013863,2]
[354308372,1740406245324,-2154.28,0.00013863,2]
[354308373,1740406245333,-500.0,0.00013863,2]
[354308375,1740406245343,-500.0,0.00013863,2]
[354308378,1740406245355,-500.0,0.00013863,2]
[354308380,1740406245365,-500.0,0.00013863,2]
[354308381,1740406245374,-614.62,0.00013863,2]
[354308383,1740406245383,-5213.81,0.00013863,2]
[354308385,1740406245393,-9270.07,0.00013863,2]
[354308387,1740406245403,-22652.11,0.00013863,2]
[354308389,1740406245412,-1668.81,0.00013863,2]
[354308391,1740406245423,-967.07,0.00013863,2]
[354308393,1740406245433,-748.04,0.00013863,2]
[354308396,1740406245442,-1958.27,0.00013863,2]
[354308398,1740406245452,-734.96,0.00013863,2]
[354308400,1740406245461,-500.0,0.00013863,2]
[354308402,1740406245471,-559.33,0.00013863,2]
[354308404,1740406245481,-647.43,0.00013863,2]
[354308406,1740406245490,-500.0,0.00013863,2]
[354308408,1740406245499,-151.0,0.00013863,2]
[354308410,1740406245509,-719.3,0.00013863,2]
[354308411,1740406245518,-524.76,0.00013863,2]
[354308413,1740406245527,-500.0,0.00013863,2]
[354308415,1740406245537,-937.79,0.00013863,2]
[354308417,1740406245546,-500.0,0.00013863,2]
[354308419,1740406245555,-575.39076428,0.00013863,2]
[354308421,1740406245565,-195.757061,0.00013863,2]
[354308423,1740406245574,-1677.05,0.00013863,2]
[354308425,1740406245583,-195.757061,0.00013863,2]
[354308427,1740406245592,-500.0,0.00013863,2]
[354308429,1740406245601,-652.67,0.00013863,2]
[354308431,1740406245611,-500.0,0.00013863,2]
[354308433,1740406245620,-3143.83,0.00013863,2]
[354308435,1740406245630,-500.0,0.00013863,2]
[354308437,1740406245639,-584.14035966,0.00013863,2]
[354308439,1740406245649,-151.0,0.00013863,2]
[354308441,1740406245658,-8408.88,0.00013863,2]
[354308443,1740406245669,-1863.36,0.00013863,2]
[354308445,1740406245678,-521.41,0.00013863,2]
[354308448,1740406245688,-2117.28,0.00013863,2]
[354308450,1740406245698,-540.81,0.00013863,2]
[354308451,1740406245707,-500.0,0.00013863,2]
[354308453,1740406245716,-960.64,0.00013863,2]
[354308456,1740406245726,-346.70894638,0.00013863,2]
[354308458,1740406245739,-500.0,0.00013863,2]
[354308460,1740406245748,-151.0,0.00013863,2]
[354308461,1740406245758,-800.78,0.00013863,2]
[354308464,1740406245768,-500.0,0.00013863,2]
[354308466,1740406245778,-500.0,0.00013863,2]
[354308468,1740406245787,-500.0,0.00013863,2]
[354308470,1740406245796,-635.91,0.00013863,2]
[354308472,1740406245806,-500.0,0.00013863,2]
[354308474,1740406245815,-151.0,0.00013863,2]
[354308476,1740406245824,-961.58,0.00013863,2]
[354308478,1740406245833,-871.13,0.00013863,2]
[354308480,1740406245843,-500.0,0.00013863,2]
[354308482,1740406245852,-500.0,0.00013863,2]
[354308483,1740406245862,-500.0,0.00013863,2]
[354308485,1740406245872,-500.0,0.00013863,2]
[354308487,1740406245881,-500.0,0.00013863,2]
[354308490,1740406245890,-151.0,0.00013863,2]
[354308491,1740406245900,-500.0,0.00013863,2]
[354308494,1740406245909,-2278.76,0.00013863,2]
[354308495,1740406245918,-500.0,0.00013863,2]
[354308497,1740406245928,-156.72567235,0.00013863,2]
[354308499,1740406245937,-500.0,0.00013899,2]
[354308501,1740406245946,-500.0,0.00013899,2]
[354308503,1740406245955,-500.0,0.00013899,2]
[354308505,1740406245965,-388.43538464,0.00013899,2]
[354308507,1740406245974,-4307.09416234,0.000139,5]
[354308509,1740406245986,-23932.54338175,0.000139,5]
[354308512,1740406245995,-151.0,0.000139,2]
[354308513,1740406246004,-3983313.64233798,0.000139,5]
[354308541,1740406246211,-547.69,0.00013698,2]
[354308543,1740406246221,-500.0,0.00013698,2]
[354308545,1740406246232,-547.69,0.00013698,2]
[354308547,1740406246242,-265.69593,0.00013698,2]
[354308550,1740406246258,-281.99407,0.00013698,2]
[354308552,1740406246267,-547.69,0.00013698,2]
[354308554,1740406246277,-547.69,0.00013698,2]
[354308556,1740406246286,-547.69,0.00013698,2]
[354308558,1740406246295,-547.69,0.00013698,2]
[354308560,1740406246304,-547.69,0.00013698,2]
[354308562,1740406246313,-547.69,0.00013698,2]
[354308564,1740406246322,-547.69,0.00013698,2]
[354308566,1740406246332,-3790.23305253,0.000139,5]
[354308568,1740406246346,-10754.78694747,0.000139,5]
[354308605,1740406246687,-547.69,0.00013698,2]
[354308607,1740406246697,-126.93548539,0.00013698,2]